[Event "17th Delhi GM Open 2019-B"]
[Site "Delhi"]
[Date "2019.01.09"]
[Round "2"]
[White "Koustav Chakraborty"]
[Black "Farhaan, M."]
[Result "1-0"]
[ECO "C14"]
[WhiteElo "1898"]
[BlackElo "1588"]
[Annotator "NA"]
[PlyCount "123"]
[EventDate "2019.01.09"]
[EventType "swiss"]
[EventCountry "IND"]
[SourceTitle "playchess.com"]
[Source "ChessBase"]
[SourceQuality "1"]
[TimeControl "3600+30"]

1. e4 {[%emt 0:00:00]} e6 {[%emt 0:00:00]} 2. d4 {[%emt 0:00:00]} d5 {[%emt 0:00:00]} 3. Nc3 {[%emt 0:00:00]} Nf6 {[%emt 0:00:00]} 4. Bg5 {[%emt 0:00:00]} Be7 {[%emt 0:00:00] LiveBook: 2754 Games} 5. e5 {[%emt 0:00:00]} Nfd7 {[%emt 0:00:00]} 6. Bxe7 {[%emt 0:00:00]} Qxe7 {[%emt 0:00:00]} 7. f4 {[%emt 0:00:00]} a6 {[%emt 0:00:00]} 8. Nf3 {[%emt 0:00:00]} c5 {[%emt 0:00:00]} 9. dxc5 {[%emt 0:00:00]} Nc6 {[%emt 0:00:00]} 10. Bd3 {[%emt 0:00:00]} Qxc5 {[%emt 0:00:00]} 11. Qd2 {[%emt 0:00:00]} b5 {[%emt 0:00:00]} 12. O-O-O {[%emt 0:00:00]} Nb6 {[%emt 0:00:00]} 13. f5 {[%emt 0:00:00] C14: French: Classical System: 4 Bg5 Be7 main line} (13. Kb1 Bb7 14. f5 O-O-O 15. Qg5 g6 16. fxe6 fxe6 17. Rhf1 Kb8 18. Qf6 Rhf8 19. Qh4 Nc4 20. Bxc4 Qxc4 21. Qxh7 {0-1 (29) Seres,L (2482)-Cao,S (2540) Hungary 2003}) 13... h6 {[%emt 0:00:00]} 14. g4 $146 {[%emt 0:00:00]} ({Predecessor:} 14. Qf4 Nc4 15. fxe6 Bxe6 16. Bxc4 bxc4 17. Nd4 O-O 18. a3 Ne7 19. g4 Rab8 20. h4 Bd7 {0-1 (48) Roessler,U (2187)-Rehn,A (2046) Germany 2008}) 14... Nc4 {[%emt 0:00:00]} 15. Bxc4 {[%emt 0:00:00]} bxc4 {[%emt 0:00:00]} 16. Nd4 {[%emt 0:00:00]} Rb8 {[%emt 0:00:00]} 17. Nxc6 $11 {[%emt 0:00:00]} Qxc6 {[%emt 0:00:00]} 18. Ne4 {[%emt 0:00:00]} Qb6 {[%emt 0:00:00]} 19. Nd6+ {[%emt 0:00:00]} Ke7 {[%emt 0:00:00]} 20. b3 {[%emt 0:08:03]} Qc5 {[%emt 0:00:00]} 21. Kb2 {[%emt 0:02:17]} a5 {[%emt 0:05:09]} 22. Qf4 {[%emt 0:06:03]} c3+ {[%emt 0:01:56]} 23. Ka1 {[%emt 0:00:09]} Kf8 {[%emt 0:07:16]} 24. fxe6 {[%emt 0:00:24]} Bxe6 {[%emt 0:00:04]} 25. Nxf7 {[%emt 0:01:02]} Ke7 {[%emt 0:00:36]} 26. Nd6 {[%emt 0:00:30]} Rb4 {[%emt 0:00:46]} 27. Nf5+ {[%emt 0:01:25]} Kd7 {[%emt 0:02:17]} 28. Qe3 {[%emt 0:03:51]} Qxe3 {[%emt 0:03:11]} 29. Nxe3 {[%emt 0:00:05]} Kc6 {[%emt 0:00:00]} 30. Rd3 {[%emt 0:02:55]} Re8 {[%emt 0:05:13]} 31. Rxc3+ {[%emt 0:01:20]} Kb6 {[%emt 0:00:07]} 32. a3 {[%emt 0:05:58]} Re4 {[%emt 0:00:13]} 33. Rd1 {[%emt 0:00:47]} Rxe5 {[%emt 0:00:52]} 34. Rcd3 {[%emt 0:00:34]} Kc5 {[%emt 0:00:12]} 35. c3 {[%emt 0:03:58]} Rf8 {[%emt 0:00:44]} 36. b4+ {[%emt 0:00:38]} axb4 {[%emt 0:00:00]} 37. axb4+ {[%emt 0:00:04]} Kc6 {[%emt 0:00:00]} 38. Nc2 {[%emt 0:02:38]} Bxg4 {[%emt 0:00:17]} 39. Nd4+ {[%emt 0:00:13]} Kb6 {[%emt 0:00:05]} 40. Rg1 {[%emt 0:00:09]} Bf5 {[%emt 0:00:27]} 41. Rf3 {[%emt 0:00:21]} Ra8+ {[%emt 0:00:06]} 42. Kb2 {[%emt 0:00:07]} g6 {[%emt 0:00:54]} 43. Nxf5 {[%emt 0:00:47]} gxf5 {[%emt 0:00:00]} 44. Rg6+ {[%emt 0:00:11]} Kb5 {[%emt 0:00:02]} 45. Kb3 {[%emt 0:00:04]} Ra6 {[%emt 0:01:07]} 46. Rg8 {[%emt 0:02:35]} Rf6 {[%emt 0:00:35]} 47. Rf1 {[%emt 0:02:20]} f4 {[%emt 0:03:09]} 48. Ra1 {[%emt 0:01:15]} Ree6 {[%emt 0:00:32]} 49. Rb8+ {[%emt 0:01:08]} Kc6 {[%emt 0:00:57]} 50. Ra6+ {[%emt 0:00:06]} Kc7 {[%emt 0:00:04]} 51. Rxe6 {[%emt 0:00:05]} Rxe6 {[%emt 0:00:00]} 52. Rf8 {[%emt 0:00:04]} Re4 {[%emt 0:01:17]} 53. Rf6 {[%emt 0:00:21]} h5 {[%emt 0:00:00]} 54. Rf5 {[%emt 0:00:21]} Kd6 {[%emt 0:00:32]} 55. Rxh5 {[%emt 0:00:24]} Re5 {[%emt 0:00:00]} 56. Rxe5 {[%emt 0:00:45]} Kxe5 {[%emt 0:00:00]} 57. Kc2 {[%emt 0:00:04]} Ke4 {[%emt 0:00:12]} 58. b5 {[%emt 0:00:53]} Ke3 {[%emt 0:01:35]} 59. b6 {[%emt 0:00:03]} f3 {[%emt 0:00:07]} 60. b7 {[%emt 0:00:03]} f2 {[%emt 0:00:13]} 61. b8=Q {[%emt 0:00:07]} f1=Q {[%emt 0:04:16]} 62. Qe5+ {[%emt 0:00:01]} 1-0

[Event "17th Delhi GM Open 2019-B"]
[Site "Delhi"]
[Date "2019.01.09"]
[Round "2"]
[White "Farzad, Khusraw"]
[Black "Batham Avinash"]
[Result "1-0"]
[ECO "A06"]
[WhiteElo "1877"]
[BlackElo "1587"]
[Annotator "NA"]
[PlyCount "75"]
[EventDate "2019.01.09"]
[EventType "swiss"]
[EventCountry "IND"]
[SourceTitle "playchess.com"]
[Source "ChessBase"]
[SourceQuality "1"]
[TimeControl "3600+30"]

1. b3 {[%emt 0:00:00]} e6 {[%emt 0:00:00]} 2. Bb2 {[%emt 0:00:00]} Nf6 {[%emt 0:00:00]} 3. e3 {[%emt 0:00:00]} d5 {[%emt 0:00:00]} 4. Nf3 {[%emt 0:00:00]} c5 {[%emt 0:00:00]} 5. Be2 {[%emt 0:00:00]} Nc6 {[%emt 0:00:00]} 6. O-O {[%emt 0:00:00]} Bd6 {[%emt 0:00:00]} 7. d3 {[%emt 0:00:00]} O-O {[%emt 0:00:00]} 8. Nbd2 {[%emt 0:00:00]} Re8 {[%emt 0:00:00]} 9. c4 {[%emt 0:00:00]} d4 {[%emt 0:00:00]} 10. exd4 {[%emt 0:00:00]} cxd4 {[%emt 0:00:00]} 11. Nxd4 {[%emt 0:00:00]} Nxd4 {[%emt 0:00:00]} 12. Bxd4 {[%emt 0:00:00]} Bxh2+ {[%emt 0:00:00]} 13. Kxh2 {[%emt 0:00:00]} Qxd4 {[%emt 0:00:00]} 14. Nf3 {[%emt 0:00:00]} Qd6+ {[%emt 0:00:00]} 15. Kg1 {[%emt 0:00:00]} b6 {[%emt 0:08:12]} 16. Qd2 {[%emt 0:00:00]} Bb7 {[%emt 0:12:18]} 17. Qg5 {[%emt 0:00:00]} Rad8 {[%emt 0:01:47]} 18. Rad1 {[%emt 0:00:00]} e5 $11 {[%emt 0:07:02]} 19. d4 {[%emt 0:08:22]} exd4 {[%emt 0:08:51]} 20. Nxd4 {[%emt 0:02:57]} Qf8 {[%emt 0:01:27]} 21. Nf5 {[%emt 0:08:51]} Ne4 {[%emt 0:02:31]} 22. Nh6+ {[%emt 0:00:00]} Kh8 {[%emt 0:00:00]} 23. Qxd8 {[%emt 0:00:00]} Nc3 {[%emt 0:02:01]} 24. Qxe8 {[%emt 0:01:23]} Qxe8 {[%emt 0:00:00]} 25. Rd8 {[%emt 0:00:01]} Nxe2+ {[%emt 0:00:01]} 26. Kh2 {[%emt 0:00:00]} Qxd8 {[%emt 0:00:59]} 27. Nxf7+ {[%emt 0:00:00]} Kg8 {[%emt 0:00:00]} 28. Nxd8 {[%emt 0:00:00]} Be4 {[%emt 0:01:39]} 29. Re1 {[%emt 0:00:00]} Bd3 {[%emt 0:00:53]} 30. Nc6 {[%emt 0:00:00]} Nf4 {[%emt 0:01:14]} 31. g3 {[%emt 0:00:00]} Nh5 {[%emt 0:01:37]} 32. Re8+ {[%emt 0:00:01]} Kf7 {[%emt 0:00:01]} 33. Ra8 {[%emt 0:00:01]} Be4 {[%emt 0:01:04]} 34. Rxa7+ {[%emt 0:00:01]} Kg6 {[%emt 0:00:58]} 35. Ra6 {[%emt 0:00:01]} Nf6 {[%emt 0:00:30]} 36. Rxb6 {[%emt 0:00:03]} h5 {[%emt 0:00:56]} 37. f3 {[%emt 0:00:00]} Bb1 {[%emt 0:01:05]} 38. a4 {[%emt 0:00:00]} 1-0

[Event "17th Delhi GM Open 2019-B"]
[Site "Delhi"]
[Date "2019.01.09"]
[Round "2"]
[White "Heikrujam Jacky Singh"]
[Black "Bharadia Yash"]
[Result "1-0"]
[ECO "D02"]
[WhiteElo "1870"]
[BlackElo "1584"]
[Annotator "NA"]
[PlyCount "109"]
[EventDate "2019.01.09"]
[EventType "swiss"]
[EventCountry "IND"]
[SourceTitle "playchess.com"]
[Source "ChessBase"]
[SourceQuality "1"]
[TimeControl "3600+30"]

1. d4 {[%emt 0:00:00]} Nf6 {[%emt 0:00:00]} 2. Nf3 {[%emt 0:00:00]} e6 {[%emt 0:00:00]} 3. Bf4 {[%emt 0:00:00]} d5 {[%emt 0:00:00]} 4. e3 {[%emt 0:00:00]} c5 {[%emt 0:00:00]} 5. c3 {[%emt 0:00:00]} Nc6 {[%emt 0:00:00]} 6. Bd3 {[%emt 0:00:00]} Bd6 {[%emt 0:00:00]} 7. Bg5 {[%emt 0:00:00] D02: 1 d4 d5 2 Nf3 sidelines, including 2...Nf6 3 g3 and 2...Nf6 3 Bf4} (7. O-O O-O 8. dxc5 Bxc5 9. Nbd2 h6 10. b4 Bd6 11. b5 Na5 12. Qa4 b6 13. Rfd1 Bb7 14. Nb3 Nxb3 15. axb3 {0-1 (58) Perelshteyn,E (2515)-Berczes,D (2492) Dallas 2015}) 7... O-O {[%emt 0:00:00]} 8. Nbd2 {[%emt 0:00:00]} e5 {[%emt 0:00:00]} 9. dxe5 {[%emt 0:00:00]} Nxe5 {[%emt 0:00:00]} 10. Nxe5 {[%emt 0:00:00]} Bxe5 {[%emt 0:00:00]} 11. Qc2 {[%emt 0:00:00]} h6 {[%emt 0:00:00]} 12. Bh4 {[%emt 0:00:00]} Re8 {[%emt 0:00:00]} 13. Nf3 $146 {[%emt 0:00:00]} ({Predecessor:} 13. O-O-O Qa5 14. f4 Bd6 15. Bxf6 gxf6 {1-0 (45) Aguas,J (1914)-Torres Martinez,F (1583) Ocana 2017}) 13... Qc7 {[%emt 0:00:00]} 14. Nxe5 {[%emt 0:00:00]} Qxe5 {[%emt 0:00:00]} 15. Bg3 {[%emt 0:00:00]} Qe7 {[%emt 0:00:00]} 16. O-O {[%emt 0:00:00]} Ne4 {[%emt 0:00:00]} 17. Bf4 {[%emt 0:00:00]} g5 {[%emt 0:00:00]} 18. Bg3 {[%emt 0:00:00]} h5 {[%emt 0:00:00]} 19. Bxe4 {[%emt 0:00:00]} Qxe4 {[%emt 0:00:00]} 20. Qxe4 {[%emt 0:00:00]} dxe4 {[%emt 0:00:00]} 21. h4 {[%emt 0:00:00]} g4 {[%emt 0:00:00]} 22. Bd6 {[%emt 0:03:27]} b6 {[%emt 0:00:00]} 23. b4 {[%emt 0:00:01]} cxb4 {[%emt 0:00:00]} 24. cxb4 {[%emt 0:01:08]} Ba6 {[%emt 0:00:00]} 25. Rfd1 {[%emt 0:04:46]} Bd3 {[%emt 0:00:00]} 26. Rdc1 {[%emt 0:00:49]} Rac8 {[%emt 0:00:23]} 27. a4 {[%emt 0:01:18]} f5 {[%emt 0:07:33]} 28. a5 {[%emt 0:02:07]} b5 {[%emt 0:01:12]} 29. Kh2 {[%emt 0:01:18]} a6 {[%emt 0:00:51]} 30. Kg3 {[%emt 0:00:37]} Kf7 {[%emt 0:00:01]} 31. Kf4 {[%emt 0:00:59]} Kf6 $11 {[%emt 0:00:40]} 32. Be5+ {[%emt 0:09:07]} Kg6 {[%emt 0:00:17]} 33. Bd4 {[%emt 0:02:38]} Bc4 {[%emt 0:05:05]} 34. Rc3 {[%emt 0:00:54]} Red8 {[%emt 0:01:13]} 35. Rac1 {[%emt 0:01:45]} Rd5 {[%emt 0:00:28]} 36. R3c2 {[%emt 0:01:57]} Rcd8 {[%emt 0:00:36]} 37. Rxc4 {[%emt 0:07:54]} bxc4 {[%emt 0:00:09]} 38. Rxc4 {[%emt 0:00:01]} R5d6 {[%emt 0:01:56]} 39. Rc7 {[%emt 0:01:15]} R8d7 {[%emt 0:00:38]} 40. Rxd7 {[%emt 0:06:18]} Rxd7 {[%emt 0:00:00]} 41. Ke5 {[%emt 0:00:06]} Rc7 {[%emt 0:01:56]} 42. Bc5 {[%emt 0:05:38]} Rd7 {[%emt 0:00:48]} 43. b5 {[%emt 0:00:45]} axb5 {[%emt 0:01:02]} 44. a6 {[%emt 0:00:00]} Rd8 {[%emt 0:01:02]} 45. a7 {[%emt 0:00:09]} Ra8 {[%emt 0:06:13]} 46. Kd4 {[%emt 0:01:00]} Rc8 {[%emt 0:11:18]} 47. Kd5 {[%emt 0:00:57]} Kf7 {[%emt 0:02:15]} 48. Bd6 {[%emt 0:00:18]} Ra8 {[%emt 0:00:22]} 49. Bb8 {[%emt 0:00:14]} Kf6 {[%emt 0:01:55]} 50. Kc5 {[%emt 0:00:58]} f4 {[%emt 0:00:00]} 51. g3 {[%emt 0:00:44]} fxg3 {[%emt 0:00:35]} 52. fxg3 {[%emt 0:00:02]} Ke6 {[%emt 0:00:06]} 53. Kxb5 {[%emt 0:00:04]} Kd7 {[%emt 0:00:58]} 54. Kc5 {[%emt 0:00:27]} Kc8 {[%emt 0:00:17]} 55. Kd5 {[%emt 0:00:05]} 1-0

[Event "17th Delhi GM Open 2019-B"]
[Site "Delhi"]
[Date "2019.01.09"]
[Round "2"]
[White "Dhanush Ragav N S"]
[Black "Viswak Sen M"]
[Result "1-0"]
[ECO "D63"]
[WhiteElo "1854"]
[BlackElo "1584"]
[Annotator "NA"]
[PlyCount "65"]
[EventDate "2019.01.09"]
[EventType "swiss"]
[EventCountry "IND"]
[SourceTitle "playchess.com"]
[Source "ChessBase"]
[SourceQuality "1"]
[TimeControl "3600+30"]

1. d4 {[%emt 0:00:00]} d5 {[%emt 0:00:00]} 2. c4 {[%emt 0:00:00]} e6 {[%emt 0:00:00]} 3. Nc3 {[%emt 0:00:00]} Nf6 {[%emt 0:00:00]} 4. Bg5 {[%emt 0:00:00]} Be7 {[%emt 0:00:00]} 5. e3 {[%emt 0:00:00]} h6 {[%emt 0:00:00]} 6. Bh4 {[%emt 0:00:00]} O-O {[%emt 0:00:00]} 7. Nf3 {[%emt 0:00:00]} Nbd7 {[%emt 0:00:00]} 8. Rc1 {[%emt 0:00:00]} c5 {[%emt 0:00:00] D63: Queen's Gambit Declined: Classical: 7 Rc1} 9. cxd5 {[%emt 0:00:00]} (9. dxc5 Nxc5 10. cxd5 g5 11. Bg3 Nxd5 12. Nxd5 Qxd5 13. Qxd5 exd5 14. Nd4 Bd7 15. Be2 Rac8 16. O-O {½-½ (31) Ivanchuk,V (2710)-Yu,Y (2765) Batumi 2018}) 9... Nxd5 {[%emt 0:00:00]} 10. Bxe7 {[%emt 0:00:00]} Nxe7 {[%emt 0:00:00]} 11. Bd3 {[%emt 0:00:00]} cxd4 {[%emt 0:00:00]} 12. exd4 {[%emt 0:00:00]} Nf6 {[%emt 0:00:00]} 13. O-O {[%emt 0:00:00]} b6 {[%emt 0:00:00]} 14. Qe2 {[%emt 0:00:00]} Bb7 {[%emt 0:00:00]} 15. Rfd1 {[%emt 0:05:15]} Ned5 {[%emt 0:00:00]} 16. Bb1 {[%emt 0:06:30]} Nf4 {[%emt 0:00:00]} 17. Qe3 {[%emt 0:02:08]} g5 $146 {[%emt 0:00:00]} ({Predecessor:} 17... N4d5 18. Nxd5 Qxd5 {0-1 (40) Madebrink,L (2172)-Sevastianov,A (2143) Sweden 2018}) 18. d5 {[%emt 0:20:09]} exd5 {[%emt 0:00:00]} 19. Nd4 {[%emt 0:01:31]} Re8 {[%emt 0:00:00]} 20. Qf3 $11 {[%emt 0:00:00]} Qb8 {[%emt 0:00:00]} 21. g3 {[%emt 0:01:09]} Nh3+ {[%emt 0:00:00]} 22. Kg2 {[%emt 0:00:36]} Qe5 {[%emt 0:00:00]} 23. Bf5 {[%emt 0:01:07]} g4 {[%emt 0:00:00]} 24. Bxg4 {[%emt 0:00:31]} Ng5 {[%emt 0:00:00]} 25. Qf5 {[%emt 0:00:00]} Qd6 {[%emt 0:10:14]} 26. Ncb5 {[%emt 0:00:02]} Qd8 {[%emt 0:00:00]} 27. Nc6 {[%emt 0:00:27]} Bc8 {[%emt 0:03:34]} 28. Qf4 {[%emt 0:00:00]} Bxg4 {[%emt 0:02:05]} 29. Nxd8 {[%emt 0:00:15]} Bf3+ {[%emt 0:00:43]} 30. Kf1 {[%emt 0:00:42]} Be2+ {[%emt 0:00:24]} 31. Kg2 {[%emt 0:00:10]} Bf3+ {[%emt 0:00:21]} 32. Qxf3 {[%emt 0:00:38]} Nxf3 {[%emt 0:00:10]} 33. Nc6 {[%emt 0:00:19]} 1-0

[Event "17th Delhi GM Open 2019-B"]
[Site "Delhi"]
[Date "2019.01.09"]
[Round "2"]
[White "Deshpande Abhishek"]
[Black "Sujay Kumar, Dam"]
[Result "1-0"]
[ECO "B86"]
[WhiteElo "1845"]
[BlackElo "1583"]
[Annotator "NA"]
[PlyCount "99"]
[EventDate "2019.01.09"]
[EventType "swiss"]
[EventCountry "IND"]
[SourceTitle "playchess.com"]
[Source "ChessBase"]
[SourceQuality "1"]
[TimeControl "3600+30"]

1. e4 {[%emt 0:00:00]} c5 {[%emt 0:00:00]} 2. Nf3 {[%emt 0:00:00]} d6 {[%emt 0:00:00]} 3. d4 {[%emt 0:00:00]} cxd4 {[%emt 0:00:00]} 4. Nxd4 {[%emt 0:00:00]} Nf6 {[%emt 0:00:00]} 5. Nc3 {[%emt 0:00:00]} a6 {[%emt 0:00:00]} 6. Bc4 {[%emt 0:00:00]} e6 {[%emt 0:00:00]} 7. Bb3 {[%emt 0:00:00]} Be7 {[%emt 0:00:00] LiveBook: 426 Games} 8. Be3 {[%emt 0:00:00]} Qc7 {[%emt 0:00:00]} 9. f3 {[%emt 0:00:00]} Nc6 {[%emt 0:00:00]} 10. Qd2 {[%emt 0:00:00]} Ne5 {[%emt 0:00:00]} 11. O-O-O {[%emt 0:00:00]} b5 {[%emt 0:00:00]} 12. Ndxb5 {[%emt 0:00:00]} axb5 $11 {[%emt 0:00:00]} 13. Nxb5 {[%emt 0:00:00]} Qb8 {[%emt 0:00:00]} 14. Nxd6+ {[%emt 0:00:00]} Bxd6 {[%emt 0:00:00]} 15. Qxd6 {[%emt 0:00:00]} Qxd6 {[%emt 0:00:00]} 16. Rxd6 {[%emt 0:00:00]} O-O {[%emt 0:00:00]} 17. Rhd1 {[%emt 0:00:00]} Ba6 {[%emt 0:00:40]} 18. Bd4 {[%emt 0:00:00]} Ng6 {[%emt 0:07:15]} 19. Rd2 {[%emt 0:00:00]} Rfc8 {[%emt 0:05:40]} 20. Kb1 {[%emt 0:00:00]} Ne8 {[%emt 0:06:20]} 21. Rd7 {[%emt 0:00:00]} Bb5 {[%emt 0:03:03]} 22. Ra7 {[%emt 0:00:00]} Rxa7 {[%emt 0:02:20]} 23. Bxa7 {[%emt 0:00:00]} Ne5 {[%emt 0:04:32]} 24. a4 {[%emt 0:05:08]} Bc4 {[%emt 0:04:40]} 25. Bxc4 {[%emt 0:01:31]} Nxc4 {[%emt 0:00:00]} 26. Rd1 {[%emt 0:01:06]} Nf6 {[%emt 0:04:37]} 27. b4 {[%emt 0:03:59]} Kf8 {[%emt 0:04:50]} 28. b5 {[%emt 0:00:00]} Ke8 {[%emt 0:07:18]} 29. Ka2 {[%emt 0:00:01]} Nd7 {[%emt 0:01:36]} 30. Kb3 {[%emt 0:01:05]} Na5+ {[%emt 0:03:18]} 31. Kb4 {[%emt 0:00:47]} Nc4 {[%emt 0:00:58]} 32. Rc1 {[%emt 0:03:17]} Nb2 {[%emt 0:00:43]} 33. Kb3 {[%emt 0:06:40]} Nxa4 {[%emt 0:00:27]} 34. Kxa4 {[%emt 0:00:45]} Ra8 {[%emt 0:00:01]} 35. b6 {[%emt 0:01:23]} Nxb6+ {[%emt 0:00:21]} 36. Kb5 {[%emt 0:00:00]} Nd7 {[%emt 0:01:13]} 37. Ka6 {[%emt 0:01:53]} Rc8 {[%emt 0:00:47]} 38. c4 {[%emt 0:00:37]} Nc5+ {[%emt 0:00:01]} 39. Bxc5 {[%emt 0:00:18]} Rxc5 {[%emt 0:00:01]} 40. Kb6 {[%emt 0:00:41]} Rc8 {[%emt 0:00:17]} 41. c5 {[%emt 0:00:15]} Rb8+ {[%emt 0:01:25]} 42. Kc7 {[%emt 0:00:00]} Rb2 {[%emt 0:00:44]} 43. Rg1 {[%emt 0:00:01]} Rc2 {[%emt 0:00:24]} 44. c6 {[%emt 0:00:00]} Ke7 {[%emt 0:00:51]} 45. Kb7 {[%emt 0:00:00]} Rb2+ {[%emt 0:00:31]} 46. Kc8 {[%emt 0:00:00]} Rc2 {[%emt 0:01:08]} 47. c7 {[%emt 0:00:00]} Ke8 {[%emt 0:00:51]} 48. Rb1 {[%emt 0:01:16]} Ke7 {[%emt 0:00:46]} 49. Kb7 {[%emt 0:00:00]} Kd7 {[%emt 0:00:48]} 50. Rd1+ {[%emt 0:00:01]} 1-0

[Event "17th Delhi GM Open 2019-B"]
[Site "Delhi"]
[Date "2019.01.09"]
[Round "2"]
[White "Jagdish, Narang"]
[Black "Smeeru, Thakur"]
[Result "0-1"]
[ECO "B70"]
[WhiteElo "1588"]
[BlackElo "1894"]
[Annotator "NA"]
[PlyCount "62"]
[EventDate "2019.01.09"]
[EventType "swiss"]
[EventCountry "IND"]
[SourceTitle "playchess.com"]
[Source "ChessBase"]
[SourceQuality "1"]
[TimeControl "3600+30"]

1. e4 {[%emt 0:00:00]} c5 {[%emt 0:00:00]} 2. Nf3 {[%emt 0:00:00]} d6 {[%emt 0:00:00]} 3. d4 {[%emt 0:00:00]} cxd4 {[%emt 0:00:00]} 4. Nxd4 {[%emt 0:00:00]} Nf6 {[%emt 0:00:00]} 5. Nc3 {[%emt 0:00:00]} g6 {[%emt 0:00:00]} 6. Bg5 {[%emt 0:00:00] LiveBook: 134 Games} Bg7 {[%emt 0:00:00]} 7. Qd2 {[%emt 0:00:00]} Nc6 {[%emt 0:00:00]} 8. Nxc6 {[%emt 0:00:00]} bxc6 {[%emt 0:00:00]} 9. f3 {[%emt 0:00:00]} Rb8 {[%emt 0:00:00]} 10. Rb1 {[%emt 0:00:00]} Qa5 {[%emt 0:00:00]} 11. Bc4 {[%emt 0:00:00]} Nd7 {[%emt 0:00:00]} 12. Nd1 {[%emt 0:00:16]} Qc5 {[%emt 0:07:00]} 13. Bd3 {[%emt 0:01:57]} Ne5 {[%emt 0:01:41]} 14. Be3 $11 {[%emt 0:02:40]} Nxd3+ {[%emt 0:00:34]} 15. cxd3 {[%emt 0:00:42]} Bd4 {[%emt 0:01:20]} 16. Ke2 {[%emt 0:15:12]} O-O {[%emt 0:05:03]} 17. b4 {[%emt 0:00:48]} Qe5 {[%emt 0:00:22]} 18. h3 {[%emt 0:06:50]} a5 {[%emt 0:02:13]} 19. a3 {[%emt 0:00:13]} axb4 {[%emt 0:00:31]} 20. axb4 {[%emt 0:01:23]} Ba6 {[%emt 0:00:01]} 21. h4 {[%emt 0:02:50]} c5 {[%emt 0:00:50]} 22. h5 {[%emt 0:02:38]} Rfc8 {[%emt 0:05:07]} 23. hxg6 {[%emt 0:00:13]} hxg6 {[%emt 0:00:04]} 24. Nf2 {[%emt 0:00:06]} cxb4 {[%emt 0:00:01]} 25. Ng4 {[%emt 0:00:38]} Bxe3 {[%emt 0:01:35]} 26. Qxe3 {[%emt 0:00:48]} Rc2+ {[%emt 0:02:16]} 27. Kf1 {[%emt 0:01:42]} Qc5 {[%emt 0:06:21]} 28. Qxc5 {[%emt 0:03:51]} Bxd3+ {[%emt 0:00:02]} 29. Kg1 {[%emt 0:00:02]} Rxc5 {[%emt 0:00:02]} 30. Ra1 {[%emt 0:00:42]} b3 {[%emt 0:00:00]} 31. Kf2 {[%emt 0:00:44]} b2 {[%emt 0:00:01]} 0-1

[Event "17th Delhi GM Open 2019-B"]
[Site "Delhi"]
[Date "2019.01.09"]
[Round "2"]
[White "Gabbar"]
[Black "Chittari Abhishek Varma"]
[Result "1-0"]
[ECO "B42"]
[WhiteElo "1583"]
[BlackElo "1855"]
[Annotator "NA"]
[PlyCount "68"]
[EventDate "2019.01.09"]
[EventType "swiss"]
[EventCountry "IND"]
[SourceTitle "playchess.com"]
[Source "ChessBase"]
[SourceQuality "1"]
[TimeControl "3600+30"]

1. d4 {[%emt 0:00:00]} Nf6 {[%emt 0:00:00]} 2. c4 {[%emt 0:00:00]} e6 {[%emt 0:00:00]} 3. Nc3 {[%emt 0:00:00]} c5 {[%emt 0:00:00]} 4. Nf3 {[%emt 0:00:00]} cxd4 {[%emt 0:00:00]} 5. Nxd4 {[%emt 0:00:00]} Be7 {[%emt 0:00:00]} 6. e4 {[%emt 0:00:00]} d6 {[%emt 0:00:00]} 7. Bd3 {[%emt 0:00:00]} a6 {[%emt 0:00:00]} 8. Be3 {[%emt 0:00:00]} Nbd7 {[%emt 0:00:00]} 9. O-O {[%emt 0:00:00]} Qc7 {[%emt 0:00:00]} 10. Rc1 {[%emt 0:00:00]} b6 {[%emt 0:00:00] B42: Sicilian: Kan Variation: 5 Bd3} 11. b3 {[%emt 0:00:00]} Bb7 {[%emt 0:00:00]} 12. f3 {[%emt 0:00:00]} O-O {[%emt 0:00:00]} 13. Qe2 {[%emt 0:00:00]} Rfe8 {[%emt 0:00:00]} (13... Rac8 14. Qf2 Qb8 15. Be2 Rfe8 16. Na4 Bd8 17. Rfd1 Bc7 18. g3 {1-0 (49) Kovanova,B (2371)-Gritsayeva,O (2373) Sochi 2017}) 14. Qf2 {[%emt 0:00:00]} Ne5 {[%emt 0:00:00]} 15. Bb1 {[%emt 0:00:00]} Nfd7 $146 {[%emt 0:00:00]} ({Predecessor:} 15... Rac8 16. h3 Ned7 17. Qe1 Qb8 18. Bf2 {0-1 (49) James,S (1988)-Sarakauskiene,Z (2152) England 2015}) 16. h3 {[%emt 0:00:00]} Nc5 {[%emt 0:00:00]} 17. Rfd1 {[%emt 0:00:00]} Ng6 {[%emt 0:00:36]} 18. Nde2 {[%emt 0:00:00]} Rab8 {[%emt 0:08:58]} 19. Nf4 {[%emt 0:00:00]} Nxf4 {[%emt 0:08:40]} 20. Bxf4 {[%emt 0:00:00]} Nd7 {[%emt 0:02:02]} 21. Be3 {[%emt 0:00:00]} Red8 {[%emt 0:01:22]} 22. Rd2 {[%emt 0:01:06]} Ba8 {[%emt 0:00:01]} 23. Rdd1 {[%emt 0:03:06]} Qb7 {[%emt 0:00:31]} 24. a4 $11 {[%emt 0:02:08]} Nf6 {[%emt 0:01:22]} 25. Qc2 {[%emt 0:03:49]} Rbc8 {[%emt 0:00:01]} 26. Qe2 {[%emt 0:01:43]} Qb8 {[%emt 0:00:21]} 27. Qf2 {[%emt 0:00:56]} Nd7 {[%emt 0:00:01]} 28. Ba2 {[%emt 0:00:58]} Bc6 {[%emt 0:00:01]} 29. b4 {[%emt 0:01:19]} b5 {[%emt 0:00:00]} 30. cxb5 {[%emt 0:01:38]} axb5 {[%emt 0:00:00]} 31. a5 {[%emt 0:00:47]} Nf6 {[%emt 0:01:12]} 32. Bb6 {[%emt 0:01:50]} Rd7 {[%emt 0:00:00]} 33. Qe2 {[%emt 0:02:06]} Bd8 {[%emt 0:00:01]} 34. Bf2 {[%emt 0:01:52]} Be7 {[%emt 0:00:28]} 1-0